[Event "November 21 Early 2023"]
[Site "https://www.chess.com"]
[Date "2023.11.21"]
[Round "2"]
[White "szachmistrz2500"]
[Black "GMT4114"]
[Result "1-0"]
[Board "247"]
[TimeControl "180+1"]
[WhiteElo "2430"]
[BlackElo "1965"]
[WhiteClock "0:01:42"]
[BlackClock "0:00:24"]

1. e4 {[%clk 0:02:52]}  e6 {[%clk 0:03:00]} 2. Nf3 {[%clk 0:02:50]}  d5 {[%clk 0:03:00]} 3. d3 {[%clk 0:02:49]}  dxe4 {[%clk 0:02:58]} 4. dxe4 {[%clk 0:02:49]}  Qxd1+ {[%clk 0:02:58]} 5. Kxd1 {[%clk 0:02:50]}  Bc5 {[%clk 0:02:57]} 6. Be3 {[%clk 0:02:49]}  Nd7 {[%clk 0:02:55]} 7. Ke2 {[%clk 0:02:44]}  Ngf6 {[%clk 0:02:47]} 8. Nbd2 {[%clk 0:02:42]}  O-O {[%clk 0:02:47]} 9. h3 {[%clk 0:02:41]}  Bb6 {[%clk 0:02:44]} 10. g4 {[%clk 0:02:40]}  Rd8 {[%clk 0:02:36]} 11. Bg2 {[%clk 0:02:40]}  Bxe3 {[%clk 0:02:34]} 12. Kxe3 {[%clk 0:02:39]}  Nb6 {[%clk 0:02:33]} 13. b3 {[%clk 0:02:38]}  Bd7 {[%clk 0:02:33]} 14. Rhd1 {[%clk 0:02:37]}  Bc6 {[%clk 0:02:33]} 15. Ne5 {[%clk 0:02:37]}  Be8 {[%clk 0:02:28]} 16. c4 {[%clk 0:02:36]}  Nfd7 {[%clk 0:02:26]} 17. Nd3 {[%clk 0:02:36]}  f6 {[%clk 0:02:14]} 18. e5 {[%clk 0:02:35]}  Bg6 {[%clk 0:02:05]} 19. exf6 {[%clk 0:02:31]}  gxf6 {[%clk 0:02:06]} 20. Nf4 {[%clk 0:02:30]}  c6 {[%clk 0:01:51]} 21. Nxg6 {[%clk 0:02:29]}  hxg6 {[%clk 0:01:50]} 22. Ne4 {[%clk 0:02:29]}  Kf7 {[%clk 0:01:50]} 23. a3 {[%clk 0:02:29]}  Ne5 {[%clk 0:01:50]} 24. f4 {[%clk 0:02:28]}  Ned7 {[%clk 0:01:39]} 25. Nd6+ {[%clk 0:02:27]}  Ke7 {[%clk 0:01:37]} 26. Nxb7 {[%clk 0:02:27]}  Rdc8 {[%clk 0:01:27]} 27. Na5 {[%clk 0:02:26]}  Rc7 {[%clk 0:01:15]} 28. Nxc6+ {[%clk 0:02:25]}  Kf7 {[%clk 0:01:15]} 29. Rd6 {[%clk 0:02:22]}  Rac8 {[%clk 0:01:14]} 30. Rad1 {[%clk 0:02:21]}  Nc5 {[%clk 0:01:12]} 31. b4 {[%clk 0:02:20]}  Nb3 {[%clk 0:01:11]} 32. c5 {[%clk 0:02:17]}  Nc4+ {[%clk 0:01:10]} 33. Ke2 {[%clk 0:02:13]}  Nxd6 {[%clk 0:01:09]} 34. Rxd6 {[%clk 0:02:14]}  f5 {[%clk 0:00:51]} 35. Ne5+ {[%clk 0:02:06]}  Kf6 {[%clk 0:00:51]} 36. Kd3 {[%clk 0:01:54]}  a5 {[%clk 0:00:50]} 37. Kc3 {[%clk 0:01:51]}  a4 {[%clk 0:00:49]} 38. g5+ {[%clk 0:01:46]}  Kg7 {[%clk 0:00:47]} 39. Rxe6 {[%clk 0:01:45]}  Nxc5 {[%clk 0:00:35]} 40. Rxg6+ {[%clk 0:01:45]}  Kh7 {[%clk 0:00:34]} 41. bxc5 {[%clk 0:01:45]}  Rxc5+ {[%clk 0:00:34]} 42. Kd4 {[%clk 0:01:42]}  Rxe5 {[%clk 0:00:35]} 43. Rh6+ {[%clk 0:01:42]}  Kg7 {[%clk 0:00:24]} 44. Kxe5 {[%clk 0:01:42]} 1-0

[Event "November 21 Early 2023"]
[Site "https://www.chess.com"]
[Date "2023.11.21"]
[Round "2"]
[White "Kuznetsova, Olga"]
[Black "IsaqueGoncalvesSanto"]
[Result "1-0"]
[Board "249"]
[TimeControl "180+1"]
[WhiteFideId "4191323"]
[WhiteElo "2134"]
[BlackElo "1910"]
[WhiteTeam "RUS"]
[WhiteClock "0:01:05"]
[BlackClock "0:00:00"]

1. d4 {[%clk 0:02:52]}  d5 {[%clk 0:02:59]} 2. Bf4 {[%clk 0:02:52]}  Bf5 {[%clk 0:02:58]} 3. e3 {[%clk 0:02:51]}  Nd7 {[%clk 0:02:55]} 4. Nd2 {[%clk 0:02:51]}  Ngf6 {[%clk 0:02:54]} 5. c4 {[%clk 0:02:51]}  c6 {[%clk 0:02:54]} 6. Qb3 {[%clk 0:02:52]}  Qb6 {[%clk 0:02:53]} 7. c5 {[%clk 0:02:52]}  Qxb3 {[%clk 0:02:50]} 8. axb3 {[%clk 0:02:53]}  Nh5 {[%clk 0:02:31]} 9. b4 {[%clk 0:02:49]}  Nxf4 {[%clk 0:02:29]} 10. exf4 {[%clk 0:02:50]}  h6 {[%clk 0:01:56]} 11. b5 {[%clk 0:02:46]}  e6 {[%clk 0:01:50]} 12. b4 {[%clk 0:02:46]}  Be7 {[%clk 0:01:48]} 13. Ngf3 {[%clk 0:02:41]}  O-O {[%clk 0:01:47]} 14. Be2 {[%clk 0:02:41]}  Nf6 {[%clk 0:01:45]} 15. O-O {[%clk 0:02:38]}  Ne4 {[%clk 0:01:44]} 16. Ra3 {[%clk 0:02:36]}  Bf6 {[%clk 0:01:42]} 17. Nxe4 {[%clk 0:02:22]}  dxe4 {[%clk 0:01:38]} 18. Ne5 {[%clk 0:02:23]}  cxb5 {[%clk 0:01:34]} 19. Bxb5 {[%clk 0:02:23]}  a6 {[%clk 0:01:34]} 20. Ba4 {[%clk 0:02:19]}  Rfd8 {[%clk 0:01:32]} 21. Rd1 {[%clk 0:02:11]}  g5 {[%clk 0:01:24]} 22. Nd7 {[%clk 0:01:30]}  Bg7 {[%clk 0:01:14]} 23. Nb6 {[%clk 0:01:28]}  Rab8 {[%clk 0:01:13]} 24. d5 {[%clk 0:01:26]}  exd5 {[%clk 0:01:10]} 25. Nxd5 {[%clk 0:01:21]}  Bg4 {[%clk 0:01:00]} 26. f3 {[%clk 0:01:21]}  exf3 {[%clk 0:00:59]} 27. gxf3 {[%clk 0:01:21]}  Bxf3 {[%clk 0:00:58]} 28. Rxf3 {[%clk 0:01:21]}  g4 {[%clk 0:00:44]} 29. Rfd3 {[%clk 0:01:19]}  Kh8 {[%clk 0:00:33]} 30. Ne7 {[%clk 0:01:14]}  Rxd3 {[%clk 0:00:31]} 31. Rxd3 {[%clk 0:01:14]}  b5 {[%clk 0:00:29]} 32. c6 {[%clk 0:01:05]}  bxa4 {[%clk 0:00:03]} 33. c7 {[%clk 0:01:06]}  Re8 {[%clk 0:00:00]} 34. Ra3 {[%clk 0:01:05]} 1-0

[Event "November 21 Early 2023"]
[Site "https://www.chess.com"]
[Date "2023.11.21"]
[Round "3"]
[White "Nakamura, Hikaru"]
[Black "Maksimovic, Bojan"]
[Result "1-0"]
[Board "1"]
[TimeControl "180+1"]
[WhiteFideId "2016192"]
[BlackFideId "14408120"]
[WhiteElo "2874"]
[BlackElo "2546"]
[WhiteTeam "USA"]
[BlackTeam "BIH"]
[WhiteClock "0:00:43"]
[BlackClock "0:00:07"]

1. Nh3 {[%clk 0:03:00]}  a6 {[%clk 0:02:56]} 2. g3 {[%clk 0:02:59]}  g6 {[%clk 0:02:56]} 3. Bg2 {[%clk 0:03:00]}  Bg7 {[%clk 0:02:57]} 4. d4 {[%clk 0:03:00]}  d6 {[%clk 0:02:57]} 5. e4 {[%clk 0:02:54]}  Nf6 {[%clk 0:02:47]} 6. f3 {[%clk 0:02:43]}  c5 {[%clk 0:02:40]} 7. dxc5 {[%clk 0:02:41]}  Qa5+ {[%clk 0:02:40]} 8. c3 {[%clk 0:02:34]}  Qxc5 {[%clk 0:02:40]} 9. Qe2 {[%clk 0:02:24]}  O-O {[%clk 0:02:21]} 10. Be3 {[%clk 0:02:20]}  Qc7 {[%clk 0:02:21]} 11. O-O {[%clk 0:02:20]}  Nc6 {[%clk 0:02:21]} 12. a4 {[%clk 0:02:17]}  d5 {[%clk 0:02:17]} 13. exd5 {[%clk 0:02:08]}  Nxd5 {[%clk 0:02:18]} 14. Bf2 {[%clk 0:02:07]}  Bf5 {[%clk 0:02:04]} 15. Nd2 {[%clk 0:02:02]}  Rad8 {[%clk 0:01:59]} 16. Ng5 {[%clk 0:01:42]}  Ne5 {[%clk 0:01:25]} 17. Nge4 {[%clk 0:01:40]}  Bxe4 {[%clk 0:01:21]} 18. Nxe4 {[%clk 0:01:37]}  Qc4 {[%clk 0:01:21]} 19. Rfe1 {[%clk 0:01:26]}  Qxe2 {[%clk 0:01:16]} 20. Rxe2 {[%clk 0:01:26]}  Nd3 {[%clk 0:01:17]} 21. Nc5 {[%clk 0:00:57]}  Nxf2 {[%clk 0:01:08]} 22. Kxf2 {[%clk 0:00:57]}  Rb8 {[%clk 0:00:16]} 23. Nd7 {[%clk 0:00:55]}  b5 {[%clk 0:00:12]} 24. axb5 {[%clk 0:00:54]}  axb5 {[%clk 0:00:13]} 25. f4 {[%clk 0:00:50]}  Nxc3 {[%clk 0:00:09]} 26. bxc3 {[%clk 0:00:48]}  Bxc3 {[%clk 0:00:10]} 27. Raa2 {[%clk 0:00:46]}  Bd4+ {[%clk 0:00:09]} 28. Ke1 {[%clk 0:00:46]}  e6 {[%clk 0:00:08]} 29. Nxb8 {[%clk 0:00:43]}  Rxb8 {[%clk 0:00:07]} 30. Ra8 {[%clk 0:00:43]} 1-0

[Event "November 21 Early 2023"]
[Site "https://www.chess.com"]
[Date "2023.11.21"]
[Round "3"]
[White "Petkov, Momchil"]
[Black "Carlsen, Magnus"]
[Result "0-1"]
[Board "2"]
[TimeControl "180+1"]
[WhiteFideId "2921642"]
[BlackFideId "1503014"]
[WhiteElo "2383"]
[BlackElo "2887"]
[WhiteTeam "BUL"]
[BlackTeam "NOR"]
[WhiteClock "0:00:01"]
[BlackClock "0:02:11"]

1. d4 {[%clk 0:03:00]}  c6 {[%clk 0:03:00]} 2. Nf3 {[%clk 0:02:55]}  Nf6 {[%clk 0:02:59]} 3. c4 {[%clk 0:02:54]}  b5 {[%clk 0:02:59]} 4. c5 {[%clk 0:02:47]}  d6 {[%clk 0:02:58]} 5. cxd6 {[%clk 0:02:47]}  exd6 {[%clk 0:02:59]} 6. Bg5 {[%clk 0:02:46]}  h6 {[%clk 0:02:58]} 7. Bh4 {[%clk 0:02:46]}  Be7 {[%clk 0:02:58]} 8. e3 {[%clk 0:02:45]}  O-O {[%clk 0:02:59]} 9. Bd3 {[%clk 0:02:45]}  Bb7 {[%clk 0:02:58]} 10. O-O {[%clk 0:02:44]}  Nbd7 {[%clk 0:02:58]} 11. Nbd2 {[%clk 0:02:40]}  Re8 {[%clk 0:02:55]} 12. a4 {[%clk 0:02:35]}  a6 {[%clk 0:02:55]} 13. Nb3 {[%clk 0:02:31]}  Qb6 {[%clk 0:02:50]} 14. Bf5 {[%clk 0:02:28]}  Rad8 {[%clk 0:02:37]} 15. axb5 {[%clk 0:01:48]}  axb5 {[%clk 0:02:37]} 16. Na5 {[%clk 0:01:06]}  Ba8 {[%clk 0:02:36]} 17. Qc2 {[%clk 0:00:51]}  c5 {[%clk 0:02:36]} 18. Rfd1 {[%clk 0:00:44]}  c4 {[%clk 0:02:35]} 19. b3 {[%clk 0:00:38]}  d5 {[%clk 0:02:32]} 20. Bg3 {[%clk 0:00:26]}  Bd6 {[%clk 0:02:31]} 21. Bxd6 {[%clk 0:00:26]}  Qxd6 {[%clk 0:02:31]} 22. Bxd7 {[%clk 0:00:21]}  Nxd7 {[%clk 0:02:27]} 23. Qd2 {[%clk 0:00:16]}  Rc8 {[%clk 0:02:26]} 24. Rdc1 {[%clk 0:00:12]}  Nf6 {[%clk 0:02:26]} 25. Ne5 {[%clk 0:00:10]}  Ne4 {[%clk 0:02:26]} 26. Qe1 {[%clk 0:00:10]}  c3 {[%clk 0:02:25]} 27. Nd3 {[%clk 0:00:09]}  b4 {[%clk 0:02:24]} 28. Ra4 {[%clk 0:00:07]}  Rb8 {[%clk 0:02:20]} 29. f3 {[%clk 0:00:07]}  Nd2 {[%clk 0:02:20]} 30. Nc5 {[%clk 0:00:03]}  Rb5 {[%clk 0:02:19]} 31. Qf2 {[%clk 0:00:01]}  Rxc5 {[%clk 0:02:19]} 32. dxc5 {[%clk 0:00:01]}  Qxc5 {[%clk 0:02:20]} 33. Re1 {[%clk 0:00:01]}  Re6 {[%clk 0:02:12]} 34. h3 {[%clk 0:00:01]}  Ra6 {[%clk 0:02:12]} 35. Kh1 {[%clk 0:00:01]}  Rxa5 {[%clk 0:02:11]} 0-1

[Event "November 21 Early 2023"]
[Site "https://www.chess.com"]
[Date "2023.11.21"]
[Round "3"]
[White "Dubov, Daniil"]
[Black "luckyswitchback"]
[Result "1-0"]
[Board "4"]
[TimeControl "180+1"]
[WhiteFideId "24126055"]
[WhiteElo "2767"]
[BlackElo "2810"]
[WhiteTeam "RUS"]
[WhiteClock "0:00:45"]
[BlackClock "0:00:04"]

1. d4 {[%clk 0:03:00]}  Nf6 {[%clk 0:02:58]} 2. Nf3 {[%clk 0:03:01]}  e6 {[%clk 0:02:58]} 3. c4 {[%clk 0:03:01]}  d5 {[%clk 0:02:53]} 4. g3 {[%clk 0:03:01]}  dxc4 {[%clk 0:02:53]} 5. Bg2 {[%clk 0:03:02]}  a6 {[%clk 0:02:54]} 6. O-O {[%clk 0:03:01]}  Nc6 {[%clk 0:02:54]} 7. Qc2 {[%clk 0:02:53]}  Nxd4 {[%clk 0:02:53]} 8. Nxd4 {[%clk 0:02:53]}  Qxd4 {[%clk 0:02:54]} 9. Rd1 {[%clk 0:02:51]}  Qc5 {[%clk 0:02:47]} 10. Nd2 {[%clk 0:02:51]}  c3 {[%clk 0:02:45]} 11. bxc3 {[%clk 0:02:50]}  Be7 {[%clk 0:02:41]} 12. c4 {[%clk 0:02:47]}  O-O {[%clk 0:02:37]} 13. Rb1 {[%clk 0:02:46]}  c6 {[%clk 0:02:34]} 14. Ne4 {[%clk 0:02:33]}  Qh5 {[%clk 0:02:34]} 15. Bg5 {[%clk 0:02:19]}  e5 {[%clk 0:02:23]} 16. Bxf6 {[%clk 0:02:10]}  gxf6 {[%clk 0:02:22]} 17. Nd6 {[%clk 0:02:05]}  Be6 {[%clk 0:01:04]} 18. Bf3 {[%clk 0:02:01]}  Qh3 {[%clk 0:00:58]} 19. Nxb7 {[%clk 0:01:50]}  Rac8 {[%clk 0:00:54]} 20. Na5 {[%clk 0:01:44]}  Bc5 {[%clk 0:00:37]} 21. e3 {[%clk 0:01:38]}  f5 {[%clk 0:00:20]} 22. Nxc6 {[%clk 0:01:31]}  e4 {[%clk 0:00:21]} 23. Bg2 {[%clk 0:01:30]}  Qh5 {[%clk 0:00:21]} 24. Nd4 {[%clk 0:01:28]}  Bxd4 {[%clk 0:00:21]} 25. Rxd4 {[%clk 0:01:28]}  Rc5 {[%clk 0:00:21]} 26. Bf1 {[%clk 0:01:25]}  Qg5 {[%clk 0:00:21]} 27. Rb6 {[%clk 0:01:19]}  a5 {[%clk 0:00:19]} 28. Rb5 {[%clk 0:01:16]}  Rfc8 {[%clk 0:00:20]} 29. Qd2 {[%clk 0:01:12]}  Qe7 {[%clk 0:00:12]} 30. Qxa5 {[%clk 0:01:01]}  h6 {[%clk 0:00:09]} 31. Qb4 {[%clk 0:00:52]}  Qa7 {[%clk 0:00:08]} 32. a4 {[%clk 0:00:49]}  R5c6 {[%clk 0:00:04]} 33. a5 {[%clk 0:00:47]}  Bxc4 {[%clk 0:00:04]} 34. Rxc4 {[%clk 0:00:45]} 1-0

[Event "November 21 Early 2023"]
[Site "https://www.chess.com"]
[Date "2023.11.21"]
[Round "3"]
[White "Molina, Roberto Junio Brito"]
[Black "Andreikin, Dmitry"]
[Result "0-1"]
[Board "5"]
[TimeControl "180+1"]
[WhiteFideId "2109450"]
[BlackFideId "4158814"]
[WhiteElo "2389"]
[BlackElo "2741"]
[WhiteTeam "BRA"]
[BlackTeam "FID"]
[WhiteClock "0:00:01"]
[BlackClock "0:00:27"]

1. d4 {[%clk 0:03:00]}  Nf6 {[%clk 0:02:59]} 2. Nf3 {[%clk 0:03:00]}  e6 {[%clk 0:03:00]} 3. e3 {[%clk 0:02:59]}  b6 {[%clk 0:02:59]} 4. Bd3 {[%clk 0:02:59]}  Bb7 {[%clk 0:03:00]} 5. O-O {[%clk 0:02:59]}  c5 {[%clk 0:03:00]} 6. Qe2 {[%clk 0:02:58]}  Nc6 {[%clk 0:02:59]} 7. c3 {[%clk 0:02:58]}  d5 {[%clk 0:02:59]} 8. Nbd2 {[%clk 0:02:58]}  Be7 {[%clk 0:02:57]} 9. dxc5 {[%clk 0:02:57]}  bxc5 {[%clk 0:02:57]} 10. e4 {[%clk 0:02:57]}  O-O {[%clk 0:02:57]} 11. b3 {[%clk 0:02:53]}  Qc7 {[%clk 0:02:52]} 12. Bb2 {[%clk 0:02:51]}  Rad8 {[%clk 0:02:52]} 13. Rad1 {[%clk 0:02:50]}  Ne5 {[%clk 0:02:46]} 14. Nxe5 {[%clk 0:02:49]}  Qxe5 {[%clk 0:02:47]} 15. Nf3 {[%clk 0:02:47]}  Qh5 {[%clk 0:02:46]} 16. e5 {[%clk 0:02:44]}  Nd7 {[%clk 0:02:34]} 17. Rfe1 {[%clk 0:02:37]}  f5 {[%clk 0:02:23]} 18. exf6 {[%clk 0:02:34]}  Rxf6 {[%clk 0:02:23]} 19. c4 {[%clk 0:02:31]}  d4 {[%clk 0:02:19]} 20. Be4 {[%clk 0:02:30]}  Bxe4 {[%clk 0:02:16]} 21. Qxe4 {[%clk 0:02:30]}  Rdf8 {[%clk 0:02:12]} 22. Qb7 {[%clk 0:01:41]}  Rg6 {[%clk 0:01:32]} 23. Kh1 {[%clk 0:00:23]}  Qg4 {[%clk 0:01:18]} 24. Rg1 {[%clk 0:00:17]}  e5 {[%clk 0:01:18]} 25. Rde1 {[%clk 0:00:16]}  Bd6 {[%clk 0:01:17]} 26. Qe4 {[%clk 0:00:16]}  Qxe4 {[%clk 0:01:06]} 27. Rxe4 {[%clk 0:00:16]}  Nf6 {[%clk 0:01:07]} 28. Re2 {[%clk 0:00:14]}  e4 {[%clk 0:01:07]} 29. Nd2 {[%clk 0:00:14]}  e3 {[%clk 0:00:47]} 30. fxe3 {[%clk 0:00:13]}  dxe3 {[%clk 0:00:48]} 31. Nf3 {[%clk 0:00:09]}  Ng4 {[%clk 0:00:48]} 32. Rge1 {[%clk 0:00:06]}  Nf2+ {[%clk 0:00:44]} 33. Rxf2 {[%clk 0:00:06]}  exf2 {[%clk 0:00:44]} 34. Rf1 {[%clk 0:00:06]}  Bf4 {[%clk 0:00:35]} 35. Rxf2 {[%clk 0:00:06]}  Be3 {[%clk 0:00:36]} 36. Rf1 {[%clk 0:00:04]}  Rd6 {[%clk 0:00:34]} 37. Re1 {[%clk 0:00:04]}  Bh6 {[%clk 0:00:32]} 38. Ba3 {[%clk 0:00:02]}  Rfd8 {[%clk 0:00:29]} 39. g3 {[%clk 0:00:02]}  Rd1 {[%clk 0:00:30]} 40. Kg2 {[%clk 0:00:02]}  Rxe1 {[%clk 0:00:29]} 41. Nxe1 {[%clk 0:00:03]}  Rd2+ {[%clk 0:00:29]} 42. Kh3 {[%clk 0:00:04]}  Be3 {[%clk 0:00:28]} 43. Nf3 {[%clk 0:00:01]}  Rxa2 {[%clk 0:00:27]} 0-1

[Event "November 21 Early 2023"]
[Site "https://www.chess.com"]
[Date "2023.11.21"]
[Round "3"]
[White "Rychkov, Oleg"]
[Black "Sadhwani, Raunak"]
[Result "0-1"]
[Board "9"]
[TimeControl "180+1"]
[WhiteFideId "4122852"]
[BlackFideId "35093487"]
[WhiteElo "2398"]
[BlackElo "2668"]
[WhiteTeam "RUS"]
[BlackTeam "IND"]
[WhiteClock "0:00:24"]
[BlackClock "0:00:18"]

1. e4 {[%clk 0:03:00]}  c6 {[%clk 0:02:57]} 2. c4 {[%clk 0:03:00]}  g6 {[%clk 0:02:53]} 3. d4 {[%clk 0:02:59]}  Bg7 {[%clk 0:02:54]} 4. Nc3 {[%clk 0:02:59]}  d6 {[%clk 0:02:53]} 5. f4 {[%clk 0:02:55]}  Nf6 {[%clk 0:02:37]} 6. Nf3 {[%clk 0:02:47]}  O-O {[%clk 0:02:38]} 7. Bd3 {[%clk 0:02:41]}  Bg4 {[%clk 0:02:38]} 8. Be3 {[%clk 0:02:38]}  e5 {[%clk 0:02:37]} 9. O-O {[%clk 0:02:32]}  exd4 {[%clk 0:02:18]} 10. Bxd4 {[%clk 0:02:31]}  Nbd7 {[%clk 0:02:17]} 11. h3 {[%clk 0:02:28]}  Bxf3 {[%clk 0:02:18]} 12. Qxf3 {[%clk 0:02:28]}  Qc7 {[%clk 0:02:18]} 13. Rad1 {[%clk 0:02:26]}  a5 {[%clk 0:02:18]} 14. g4 {[%clk 0:02:26]}  Rad8 {[%clk 0:02:04]} 15. g5 {[%clk 0:02:15]}  Nh5 {[%clk 0:01:45]} 16. Be3 {[%clk 0:02:10]}  Nc5 {[%clk 0:01:45]} 17. Bc2 {[%clk 0:02:09]}  Qb6 {[%clk 0:01:37]} 18. Na4 {[%clk 0:01:50]}  Qb4 {[%clk 0:01:27]} 19. a3 {[%clk 0:01:48]}  Qxc4 {[%clk 0:01:20]} 20. Nc3 {[%clk 0:01:28]}  b5 {[%clk 0:01:10]} 21. Rc1 {[%clk 0:01:23]}  Nb3 {[%clk 0:00:54]} 22. Bxb3 {[%clk 0:01:18]}  Qxb3 {[%clk 0:00:55]} 23. Rf2 {[%clk 0:01:10]}  b4 {[%clk 0:00:53]} 24. axb4 {[%clk 0:01:09]}  axb4 {[%clk 0:00:54]} 25. Nd1 {[%clk 0:01:08]}  c5 {[%clk 0:00:52]} 26. Kg2 {[%clk 0:00:59]}  Rfe8 {[%clk 0:00:51]} 27. Re2 {[%clk 0:00:55]}  c4 {[%clk 0:00:45]} 28. Bb6 {[%clk 0:00:49]}  Qd3 {[%clk 0:00:26]} 29. Bxd8 {[%clk 0:00:40]}  Nxf4+ {[%clk 0:00:25]} 30. Qxf4 {[%clk 0:00:37]}  Qxe2+ {[%clk 0:00:25]} 31. Nf2 {[%clk 0:00:38]}  Rxd8 {[%clk 0:00:24]} 32. e5 {[%clk 0:00:29]}  d5 {[%clk 0:00:21]} 33. e6 {[%clk 0:00:25]}  fxe6 {[%clk 0:00:18]} 34. b3 {[%clk 0:00:24]}  Rf8 {[%clk 0:00:18]} 0-1

[Event "November 21 Early 2023"]
[Site "https://www.chess.com"]
[Date "2023.11.21"]
[Round "3"]
[White "Paravyan, David"]
[Black "Alexandre, Anne Shopie Elizabeth"]
[Result "0-1"]
[Board "10"]
[TimeControl "180+1"]
[WhiteFideId "4194985"]
[BlackFideId "11902418"]
[WhiteElo "2566"]
[BlackElo "2786"]
[WhiteTeam "FID"]
[BlackTeam "HAI"]
[WhiteClock "0:00:11"]
[BlackClock "0:01:00"]

1. d4 {[%clk 0:03:00]}  Nf6 {[%clk 0:02:59]} 2. c4 {[%clk 0:03:00]}  e6 {[%clk 0:02:59]} 3. Nc3 {[%clk 0:03:00]}  Bb4 {[%clk 0:02:58]} 4. e3 {[%clk 0:03:00]}  b6 {[%clk 0:02:58]} 5. Ne2 {[%clk 0:02:59]}  Ne4 {[%clk 0:02:56]} 6. Bd2 {[%clk 0:02:53]}  Nxd2 {[%clk 0:02:56]} 7. Qxd2 {[%clk 0:02:54]}  Bb7 {[%clk 0:02:56]} 8. a3 {[%clk 0:02:54]}  Be7 {[%clk 0:02:56]} 9. Nf4 {[%clk 0:02:53]}  d6 {[%clk 0:02:55]} 10. Be2 {[%clk 0:02:53]}  Nd7 {[%clk 0:02:55]} 11. Qd1 {[%clk 0:02:42]}  Bg5 {[%clk 0:02:38]} 12. Bf3 {[%clk 0:02:41]}  Bxf3 {[%clk 0:02:34]} 13. Qxf3 {[%clk 0:02:42]}  O-O {[%clk 0:02:34]} 14. O-O {[%clk 0:02:40]}  Bxf4 {[%clk 0:02:27]} 15. Qxf4 {[%clk 0:02:39]}  e5 {[%clk 0:02:27]} 16. Qf3 {[%clk 0:02:38]}  exd4 {[%clk 0:02:27]} 17. exd4 {[%clk 0:02:39]}  Nf6 {[%clk 0:02:27]} 18. Rfe1 {[%clk 0:02:38]}  Qd7 {[%clk 0:02:26]} 19. Re2 {[%clk 0:02:37]}  a5 {[%clk 0:02:25]} 20. Rae1 {[%clk 0:02:36]}  Rae8 {[%clk 0:02:25]} 21. h3 {[%clk 0:02:36]}  h6 {[%clk 0:02:24]} 22. b3 {[%clk 0:02:33]}  Rxe2 {[%clk 0:02:21]} 23. Rxe2 {[%clk 0:02:34]}  Re8 {[%clk 0:02:22]} 24. Rxe8+ {[%clk 0:02:27]}  Qxe8 {[%clk 0:02:21]} 25. Kf1 {[%clk 0:02:27]}  Qe7 {[%clk 0:02:19]} 26. g3 {[%clk 0:02:24]}  g6 {[%clk 0:02:18]} 27. Qe3 {[%clk 0:02:14]}  Qd7 {[%clk 0:02:13]} 28. Qxh6 {[%clk 0:02:13]}  Qf5 {[%clk 0:02:10]} 29. Kg2 {[%clk 0:01:34]}  Qc2 {[%clk 0:02:06]} 30. Qe3 {[%clk 0:01:33]}  Qxb3 {[%clk 0:02:05]} 31. Nd5 {[%clk 0:01:29]}  Qxe3 {[%clk 0:02:05]} 32. Nxf6+ {[%clk 0:00:56]}  Kg7 {[%clk 0:02:05]} 33. fxe3 {[%clk 0:00:57]}  Kxf6 {[%clk 0:02:05]} 34. a4 {[%clk 0:00:57]}  Ke6 {[%clk 0:02:00]} 35. Kf3 {[%clk 0:00:56]}  d5 {[%clk 0:01:46]} 36. c5 {[%clk 0:00:28]}  bxc5 {[%clk 0:01:45]} 37. dxc5 {[%clk 0:00:28]}  Ke5 {[%clk 0:01:45]} 38. h4 {[%clk 0:00:16]}  f5 {[%clk 0:01:44]} 39. g4 {[%clk 0:00:10]}  fxg4+ {[%clk 0:01:36]} 40. Kxg4 {[%clk 0:00:11]}  Ke4 {[%clk 0:01:36]} 41. Kg5 {[%clk 0:00:12]}  Kxe3 {[%clk 0:01:37]} 42. Kxg6 {[%clk 0:00:13]}  d4 {[%clk 0:01:38]} 43. h5 {[%clk 0:00:13]}  d3 {[%clk 0:01:38]} 44. h6 {[%clk 0:00:14]}  d2 {[%clk 0:01:39]} 45. h7 {[%clk 0:00:15]}  d1=Q {[%clk 0:01:39]} 46. h8=Q {[%clk 0:00:16]}  Qg4+ {[%clk 0:01:27]} 47. Kf7 {[%clk 0:00:16]}  Qd7+ {[%clk 0:01:23]} 48. Kg6 {[%clk 0:00:15]}  Qc6+ {[%clk 0:01:20]} 49. Kf7 {[%clk 0:00:14]}  Qd5+ {[%clk 0:01:18]} 50. Ke7 {[%clk 0:00:14]}  Qxc5+ {[%clk 0:01:17]} 51. Kd7 {[%clk 0:00:14]}  Qd4+ {[%clk 0:00:59]} 52. Qxd4+ {[%clk 0:00:14]}  Kxd4 {[%clk 0:01:00]} 53. Kxc7 {[%clk 0:00:11]}  Kc5 {[%clk 0:01:00]} 0-1